bitfinex/quotes_SOLUSD_20250305
["timestamp","ask_amount","ask_price","bid_price","bid_amount"]
[1741180656860,0.03,146.04,145.95,6.8516]
[1741180657189,0.03,146.04,145.96,18.933972]
[1741180657972,0.03,146.04,145.98,18.933972]
[1741180658177,0.03,146.04,145.98,51.82144527]
[1741180658385,0.03,146.04,145.87,8.5765]
[1741180658591,0.03,146.04,145.93,0.14216157]
[1741180658885,0.03,146.04,145.94,70.47109413]
[1741180659087,0.03,146.04,145.94,77.32299413]
[1741180659259,0.03,146.04,145.96,70.47109413]
[1741180659459,0.03,146.04,145.97,51.53712213]
[1741180659659,0.03,146.04,146.0,18.933972]
[1741180659884,0.03,146.04,145.96,2.0]
[1741180659885,0.03,146.04,146.02,70.47109413]
[1741180660388,0.03,146.04,146.03,70.47109413]
[1741180660587,0.03,146.04,146.03,18.933972]
[1741180661594,0.03,146.04,146.03,330.933972]
[1741180662170,0.03,146.04,146.03,18.933972]
[1741180662364,0.03,146.04,145.94,17.1298]
[1741180662690,0.03,146.04,145.96,51.53712213]
[1741180662889,0.03,146.04,145.97,70.47109413]
[1741180663090,0.03,146.04,145.97,70.32893256]
[1741180663291,0.03,146.04,145.97,77.17953256]
[1741180663479,0.03,146.04,146.01,18.79181043]
[1741180663787,0.03,146.04,146.02,0.14216157]
[1741180664399,0.03,146.04,146.0,18.933972]
[1741180665079,0.03,146.04,146.0,18.64964886]
[1741180665278,0.03,146.04,146.02,0.28432314]
[1741180665481,0.03,146.04,146.01,18.64964886]
[1741180666883,0.03,146.04,146.02,0.28432314]
[1741180667881,0.03,146.04,146.0,25.783172]
[1741180668084,0.03,146.04,146.0,18.933972]
[1741180668885,0.03,146.04,145.98,25.784072]
[1741180670193,0.03,146.04,145.96,6.851]
[1741180670509,0.03,146.04,145.97,18.64964886]
[1741180670673,0.03,146.04,146.0,18.64964886]
[1741180670873,0.03,146.04,146.01,0.14216157]
[1741180671587,0.03,146.04,145.98,0.14216157]
[1741180671790,0.03,146.04,145.98,0.28432314]
[1741180672521,0.03,146.04,146.0,0.28432314]
[1741180673296,0.03,146.04,146.02,0.28432314]
[1741180673879,0.03,146.04,146.03,18.933972]
[1741180674202,0.03,146.04,146.03,330.933972]
[1741180675409,7.1858,146.12,146.04,0.28432314]
[1741180675617,2.0531,146.12,146.06,0.28432314]
[1741180676296,2.0528,146.14,146.06,70.47109413]
[1741180676726,2.0524,146.17,146.08,18.933972]
[1741180677083,2.0524,146.17,146.1,0.28432314]
[1741180677282,7.1834,146.17,146.1,0.28432314]
[1741180677581,7.1834,146.17,146.08,18.64964886]
[1741180677785,7.1834,146.17,146.02,70.22012213]
[1741180677786,17.4454,146.17,146.09,0.14216157]
[1741180678084,0.03,146.12,146.09,0.14216157]
[1741180678388,0.03,146.12,146.02,53.09952213]
[1741180678598,0.03,146.12,146.05,312.0]
[1741180678805,0.03,146.12,146.06,18.933972]
[1741180679104,0.03,146.12,146.03,18.64964886]
[1741180679292,0.03,146.12,146.04,0.28432314]
[1741180679691,0.03,146.12,146.05,18.64964886]
[1741180679898,0.03,146.12,146.05,18.933972]
[1741180681285,0.03,146.12,146.04,0.28432314]
[1741180681608,0.03,146.12,146.08,0.14216157]
[1741180681991,0.03,146.12,146.11,18.933972]
[1741180682607,0.03,146.12,146.11,70.47109413]
[1741180682986,0.03,146.12,146.11,18.79181043]
[1741180683307,0.03,146.12,146.02,1.5624]
[1741180683511,0.03,146.12,146.02,8.4106]
[1741180683691,0.03,146.12,146.03,18.933972]
[1741180683886,0.03,146.12,146.02,8.4106]
[1741180684092,0.03,146.12,146.03,18.933972]
[1741180685013,7.93501551,146.12,145.95,8.4473]
[1741180685212,7.93501551,146.12,145.97,51.53712213]
[1741180685534,6.1385,146.12,146.04,0.28432314]
[1741180686219,6.1385,146.12,146.03,70.18677099]
[1741180686220,1.79633993,146.11,145.97,51.53712213]
[1741180686386,1.79633993,146.11,145.98,18.933972]
[1741180686594,1.79633993,146.11,145.97,51.53712213]
[1741180686795,2.0533,146.1,146.0,51.53712213]
[1741180687000,2.0533,146.1,146.01,18.933972]
[1741180687201,2.0532,146.11,146.01,70.47109413]
[1741180687402,2.0532,146.11,145.98,23.9756]
[1741180687403,0.03,146.12,146.05,18.933972]
[1741180687623,0.03,146.12,146.07,70.47109413]
[1741180687816,0.03,146.12,146.11,0.28432314]
[1741180688426,0.03,146.12,146.09,70.47109413]
[1741180688626,0.03,146.12,146.11,25.778072]
[1741180689025,0.03,146.12,146.11,337.778072]
[1741180689409,0.03,146.12,146.11,330.933972]
[1741180690224,0.03,146.12,146.11,330.79181043]
[1741180690435,0.03,146.12,146.07,0.14216157]
[1741180690620,0.03,146.12,146.07,18.79181043]
[1741180690802,0.03,146.12,146.07,25.63771043]
[1741180691007,0.03,146.12,146.07,0.14216157]
[1741180692209,0.03,146.12,146.09,0.14216157]
[1741180692434,0.03,146.12,146.1,0.14216157]
[1741180692719,0.03,146.12,146.11,25.778072]
[1741180692916,0.03,146.12,146.11,18.933972]
[1741180693419,0.03,146.12,146.11,330.933972]
[1741180694630,0.03,146.12,146.11,18.79181043]
[1741180694931,0.03,146.12,146.03,0.033]
[1741180695142,6.1145,146.12,146.03,0.033]
[1741180695320,1.79693946,146.11,146.03,0.033]
[1741180696131,9.75296381,146.11,145.92,58.39002213]
[1741180696338,7.75296381,146.11,145.94,18.933972]
[1741180696830,1.79693946,146.11,145.98,0.28432314]
[1741180697135,7.1867,146.1,146.0,18.933972]
[1741180697356,1.79703951,146.09,146.0,0.28432314]
[1741180697507,7.1867,146.1,146.0,312.28432314]
[1741180697715,7.1867,146.1,146.02,0.14216157]
[1741180697936,1.79721862,146.09,146.02,0.14216157]
[1741180698229,1.79721862,146.09,145.98,18.64964886]
[1741180698412,1.79721862,146.09,145.92,51.53712213]
[1741180698615,1.79721862,146.09,145.93,51.53712213]
[1741180698817,7.1877,146.08,145.93,6.8526]
[1741180699013,1.79782129,146.07,145.91,51.53712213]
[1741180699235,1.79782129,146.07,145.92,6.853]
[1741180699530,1.79782129,146.07,145.93,18.933972]
[1741180699709,1.79782129,146.07,145.93,18.64964886]
[1741180699910,1.79782129,146.07,145.94,18.933972]
[1741180700316,8.91442314,146.06,145.9,0.033]
[1741180700646,1.79844475,146.05,145.9,0.033]
[1741180701008,7.1897,146.04,145.92,312.0]
[1741180701206,1.79830826,146.03,145.93,18.64964886]
[1741180701412,2.66952713,146.03,145.92,312.0]
[1741180701636,2.66952713,146.03,145.9,0.033]
[1741180701637,2.74707973,146.02,145.9,0.033]
[1741180701819,1.79880332,146.01,145.9,0.033]
[1741180702020,6.9967,146.0,145.9,0.033]
[1741180702218,1.79907087,145.99,145.9,0.033]
[1741180702529,29.49491451,145.98,145.85,0.033]
[1741180702718,0.14216157,145.96,145.85,0.033]
[1741180702919,17.4727,145.94,145.85,0.033]
[1741180703237,1.79957735,145.93,145.85,0.033]
[1741180703638,6.385,145.92,145.85,0.033]
[1741180703937,1.79979109,145.91,145.85,0.033]
[1741180704513,1.79979109,145.91,145.84,0.033]
[1741180704914,2.056,145.91,145.84,0.033]
[1741180706931,1.79943476,145.94,145.85,0.14216157]
[1741180707439,1.79943476,145.94,145.84,0.17516157]
[1741180707641,1.79943476,145.94,145.9,0.033]
[1741180707937,2.0554,145.95,145.9,0.033]
[1741180710217,7.1941,145.95,145.9,0.033]
[1741180710418,1.79891782,145.94,145.9,0.033]
[1741180711435,8.99314164,145.95,145.9,0.033]
[1741180711615,2.0554,145.95,145.9,0.033]
[1741180711820,2.0554,145.95,145.91,0.14216157]
[1741180712015,2.0547,146.0,145.91,0.28432314]
[1741180712224,2.0547,146.0,145.93,0.14216157]
[1741180712441,7.60855782,146.03,145.94,0.14216157]
[1741180712618,2.0543,146.03,145.95,0.14216157]
[1741180712946,1.79761655,146.06,145.94,0.28432314]
[1741180713124,2.054,146.05,145.95,0.14216157]
[1741180713534,2.054,146.05,145.94,0.28432314]
[1741180713737,1.7977528,146.04,145.94,0.28432314]
[1741180714120,2.28432314,146.04,145.95,312.0]
[1741180714325,7.1907,146.02,145.9,0.033]
[1741180714523,4.40328486,146.01,145.9,0.033]
[1741180715453,7.1916,146.0,145.9,0.033]
[1741180715622,1.79855813,145.99,145.9,0.033]
[1741180716019,6.3755,145.98,145.9,0.033]
[1741180716219,1.79922508,145.97,145.9,0.033]
[1741180717443,2.0553,145.96,145.9,0.033]
[1741180717647,1.79892088,145.95,145.9,0.033]
[1741180719344,7.1946,145.94,145.9,0.033]
[1741180719549,1.79914477,145.93,145.9,0.033]
[1741180720450,1.79914477,145.93,145.84,0.033]
[1741180721443,7.1957,145.92,145.84,0.033]
[1741180721636,1.79967427,145.91,145.84,0.033]
[1741180723645,7.1967,145.9,145.84,0.033]
[1741180723846,1.79969665,145.89,145.84,0.033]
[1741180725736,1.79972549,145.91,145.84,0.033]
[1741180725943,2.056,145.91,145.85,0.14216157]
[1741180726754,1.79936499,145.92,145.85,18.933972]
[1741180726935,5.1387,145.96,145.85,0.28432314]
[1741180727131,1.7992518,145.97,145.85,0.28432314]
[1741180727132,2.0554,145.95,145.87,0.28432314]
[1741180727336,2.0553,145.97,145.9,0.14216157]
[1741180727764,2.0553,145.97,145.91,18.79181043]
[1741180728355,2.0553,145.97,145.91,0.14216157]
[1741180728756,7.1933,145.97,145.87,6.8552]
[1741180729076,1.79854079,145.96,145.86,0.14216157]
[1741180729740,1.79854079,145.96,145.86,0.28432314]
[1741180729936,7.1941,145.95,145.86,0.28432314]
[1741180730142,8.99305357,145.95,145.84,0.033]
[1741180730747,8.99305357,145.95,145.85,0.31732314]
[1741180731052,2.0554,145.95,145.87,0.14216157]
[1741180731253,2.0554,145.95,145.88,0.14216157]
[1741180731463,1.79884609,145.94,145.85,0.17516157]
[1741180732034,2.0557,145.93,145.86,0.28432314]
[1741180732249,2.0557,145.93,145.86,18.933972]
[1741180732451,1.79911041,145.97,145.86,18.933972]
[1741180732655,2.0553,145.96,145.86,18.933972]
[1741180733060,2.0553,145.96,145.86,70.47109413]
[1741180733267,2.0553,145.96,145.88,18.933972]
[1741180733468,2.0552,145.97,145.88,70.47109413]
[1741180733636,7.191,146.02,145.92,0.28432314]
[1741180734362,7.191,146.02,145.94,0.14216157]
[1741180734866,1.79807995,146.01,145.92,312.0]
[1741180735164,1.79807995,146.01,145.85,51.57012213]
[1741180735338,1.79807995,146.01,145.88,18.933972]
[1741180735540,1.79807995,146.01,145.88,18.64964886]
[1741180735859,1.79807995,146.01,145.89,0.28432314]
[1741180736177,7.1916,146.0,145.89,0.28432314]
[1741180736340,1.79840346,145.99,145.89,0.28432314]
[1741180736542,1.79840346,145.99,145.91,0.14216157]
[1741180736838,7.1916,146.0,145.91,0.14216157]
[1741180737059,1.7983311,145.99,145.91,0.14216157]
[1741180737459,1.7983311,145.99,145.88,0.28432314]
[1741180737856,1.7983311,145.99,145.88,51.82144527]
[1741180738059,7.1926,145.98,145.85,0.033]
[1741180738257,1.79900411,145.97,145.85,0.033]
[1741180738639,1.79900411,145.97,145.85,0.31732314]
[1741180738864,8.99147865,145.98,145.87,0.28432314]
[1741180739167,8.99147865,145.98,145.87,18.933972]
[1741180739971,1.79854799,145.97,145.86,18.933972]
[1741180740343,1.79854799,145.97,145.86,0.14216157]
[1741180740550,1.79854799,145.97,145.86,0.28432314]
[1741180740757,1.79854799,145.97,145.85,0.033]
[1741180741162,1.79854799,145.97,145.86,18.933972]
[1741180741964,7.1936,145.96,145.86,18.79181043]
[1741180742167,7.1936,145.96,145.85,312.033]
[1741180742168,6.1701,145.94,145.85,0.033]
[1741180742475,1.79922002,145.93,145.85,0.033]
[1741180742671,1.79922002,145.93,145.86,0.14216157]
[1741180742854,1.79922002,145.93,145.85,0.31732314]
[1741180743756,6.1701,145.94,145.87,0.14216157]
[1741180743963,6.1701,145.94,145.87,0.28432314]
[1741180744164,6.1701,145.94,145.89,0.14216157]
[1741180744478,2.0554,145.95,145.89,0.14216157]
[1741180744645,7.1941,145.95,145.89,0.14216157]
[1741180745051,2.055,145.98,145.92,18.933972]
[1741180745468,2.0546,146.01,145.92,18.933972]
[1741180745656,11.4719,146.02,145.94,70.47109413]
[1741180745657,8.3898,146.02,145.94,70.47109413]
[1741180745961,2.0542,146.04,145.96,18.933972]
[1741180746169,0.03,146.05,145.98,0.14216157]
[1741180746385,0.03,146.05,145.98,18.933972]
[1741180746974,0.03,146.05,145.97,0.14216157]
[1741180747156,0.03,146.05,145.93,0.14216157]
[1741180747157,1.79761296,146.04,145.93,0.14216157]
[1741180747361,1.79761296,146.04,145.93,0.28432314]
[1741180748099,1.79761296,146.04,145.93,18.933972]
[1741180748100,7.1902,146.03,145.93,18.933972]
[1741180748387,1.76754556,146.02,145.86,53.11982213]
[1741180748553,8.59478878,146.02,145.86,313.5827]
[1741180748749,14.76912697,146.02,145.87,18.933972]
[1741180748990,12.40199976,146.01,145.86,312.0]
[1741180749281,0.14216157,145.99,145.85,0.033]
[1741180749454,2.57082032,145.98,145.85,0.033]
[1741180750078,17.4727,145.94,145.85,0.033]
[1741180750259,0.14216157,145.91,145.84,0.033]
[1741180750461,1.8002065,145.9,145.84,0.033]
[1741180751177,1.79996272,145.92,145.84,0.033]
[1741180752059,2.056,145.91,145.84,0.033]
[1741180752259,1.79987108,145.9,145.84,0.033]
[1741180754078,2.0563,145.89,145.84,0.033]
[1741180754269,1.79985494,145.88,145.84,0.033]
[1741180754862,6.5361,145.87,145.75,0.033]
[1741180755085,1.80011255,145.86,145.75,0.033]
[1741180755281,10.36105506,145.86,145.75,18.82481043]
[1741180756088,7.1996,145.84,145.75,0.033]
[1741180756399,0.14216157,145.82,145.75,0.033]
[1741180756688,0.14216157,145.8,145.74,0.033]
[1741180756893,1.80152995,145.79,145.74,0.033]
[1741180757086,0.14216157,145.78,145.72,0.033]
[1741180757281,0.28432314,145.76,145.7,0.033]
[1741180757484,6.3029,145.73,145.69,0.033]
[1741180757676,1.80239549,145.72,145.57,6.8694]
[1741180757994,1.80239549,145.72,145.58,0.28432314]
[1741180758294,7.206,145.71,145.59,6.8686]
[1741180758471,1.80226196,145.7,145.59,6.8686]
[1741180758667,1.80226196,145.7,145.6,18.933972]
[1741180758874,2.0588,145.71,145.6,18.933972]
[1741180759074,1.80202893,145.7,145.6,330.64964886]
[1741180759280,1.80202893,145.7,145.6,312.0]
[1741180759789,1.80202893,145.7,145.6,18.79181043]
[1741180760087,1.80202893,145.7,145.56,62.17464138]
[1741180760088,0.14216157,145.65,145.56,10.63751925]
[1741180760289,0.14216157,145.63,145.56,10.63751925]
[1741180760495,1.80359437,145.62,145.56,10.63751925]
[1741180760679,1.80359437,145.62,145.5,58.40992213]
[1741180760871,1.80359437,145.62,145.5,6.8728]
[1741180761374,1.80320054,145.61,145.51,18.64964886]
[1741180761568,2.0597,145.65,145.53,18.64964886]
[1741180761764,2.0595,145.66,145.54,18.933972]
[1741180761971,1.8026408,145.65,145.54,18.933972]
[1741180762276,1.80255045,145.67,145.56,18.933972]
[1741180762590,1.80238122,145.72,145.6,18.933972]
[1741180762790,6.0878,145.73,145.63,18.933972]
[1741180763293,6.0878,145.73,145.63,70.47109413]
[1741180763485,12.65796804,145.76,145.62,1.626]
[1741180763690,1.80127716,145.75,145.63,0.28432314]
[1741180763876,1.80127716,145.75,145.62,1.626]
[1741180764079,0.28432314,145.74,145.56,0.14216157]
[1741180764391,18.933972,145.72,145.57,6.8695]
[1741180764586,10.36365326,145.71,145.57,0.28432314]
[1741180764785,16.89982479,145.71,145.56,6.8699]
[1741180764972,0.14216157,145.68,145.47,6.8742]
[1741180765172,0.14216157,145.66,145.47,6.8742]
[1741180765373,1.8033323,145.65,145.48,18.933972]
[1741180765670,1.8033323,145.65,145.48,51.53712213]
[1741180765874,1.8033323,145.65,145.49,18.933972]
[1741180766198,1.8033323,145.65,145.49,18.64964886]
[1741180766395,2.0598,145.64,145.51,18.64964886]
[1741180766571,1.80325109,145.63,145.51,18.64964886]
[1741180767391,1.80325109,145.63,145.52,0.28432314]
[1741180767593,3.86332551,145.62,145.53,18.64964886]
[1741180767973,3.86332551,145.62,145.5,6.98]
[1741180768172,9.01362551,145.62,145.47,58.47712213]
[1741180768400,9.01362551,145.62,145.47,6.94]
[1741180768597,9.01362551,145.62,145.48,18.64964886]
[1741180768769,9.01362551,145.62,145.49,0.28432314]
[1741180769175,9.01362551,145.62,145.51,18.79181043]
[1741180769372,9.01362551,145.62,145.52,0.14216157]
[1741180769589,2.06,145.63,145.52,0.14216157]
[1741180769792,2.0598,145.64,145.55,0.14216157]
[1741180769993,1.80267438,145.63,145.48,6.8733]
[1741180770382,1.80267438,145.63,145.49,18.64964886]
[1741180770813,1.80267438,145.63,145.5,18.933972]
[1741180771012,1.80267438,145.63,145.48,6.8733]
[1741180771187,0.14216157,145.62,145.47,6.94]
[1741180771386,9.01471974,145.61,145.47,6.94]
[1741180771590,6.2184,145.6,145.46,0.28432314]
[1741180771800,1.80372117,145.59,145.49,0.14216157]
[1741180772000,1.80372117,145.59,145.44,68.72562213]
[1741180772204,1.80372117,145.59,145.43,6.8761]
[1741180772499,1.80372117,145.59,145.44,6.98]
[1741180773282,7.2125,145.58,145.48,18.64964886]
[1741180773480,1.80384156,145.57,145.48,18.64964886]
[1741180773882,1.80384156,145.57,145.46,312.0]
[1741180774305,1.80384156,145.57,145.48,0.14216157]
[1741180774501,7.2125,145.58,145.48,0.28432314]
[1741180774889,7.2125,145.58,145.44,6.94]
[1741180774890,1.80356362,145.57,145.44,6.8756]
[1741180775281,7.2135,145.56,145.46,6.8747]
[1741180775491,1.80397233,145.55,145.46,6.8747]
[1741180775682,1.80397233,145.55,145.44,0.14216157]
[1741180775888,1.80397233,145.55,145.44,6.8755]
[1741180776100,1.80397233,145.55,145.43,7.02]
[1741180776290,1.80397233,145.55,145.44,0.28432314]
[1741180776488,1.80397233,145.55,145.44,18.64964886]
[1741180777294,1.80397233,145.55,145.45,0.28432314]
[1741180777488,3.86517233,145.55,145.48,0.14216157]
[1741180777703,2.0612,145.55,145.48,312.14216157]
[1741180778713,2.0612,145.55,145.48,0.14216157]
[1741180778914,3.86493041,145.56,145.48,0.14216157]
[1741180779305,1.80376637,145.59,145.48,0.14216157]
[1741180779497,10.08211239,145.6,145.5,18.933972]
[1741180779897,15.23311239,145.6,145.5,18.79181043]
[1741180780112,15.23311239,145.6,145.48,0.28432314]
[1741180780416,15.23311239,145.6,145.48,18.933972]
[1741180781288,19.45543745,145.6,145.46,0.28432314]
[1741180781491,19.45543745,145.6,145.46,13.8547]
[1741180781691,19.45543745,145.6,145.47,18.64964886]
[1741180782090,18.67026697,145.6,145.48,0.14216157]
[1741180782291,15.23311239,145.6,145.48,0.28432314]
[1741180782490,10.08211239,145.6,145.48,0.28432314]
[1741180782713,8.2788,145.6,145.51,0.14216157]
[1741180783018,6.2184,145.6,145.53,0.14216157]
[1741180783402,6.2184,145.6,145.55,18.79181043]
[1741180783597,2.0601,145.62,145.55,18.79181043]
[1741180783794,2.0598,145.64,145.56,0.14216157]
[1741180783993,6.1586,145.65,145.57,18.79181043]
[1741180784209,8.2183,145.65,145.57,18.79181043]
[1741180784399,1.80261873,145.64,145.56,6.96]
[1741180784609,8.2183,145.65,145.56,6.96]
[1741180784802,8.2183,145.65,145.55,18.933972]
[1741180784994,1.8026866,145.64,145.5,0.28432314]
[1741180785190,1.8026866,145.64,145.48,6.8737]
[1741180785191,1.8026866,145.64,145.48,24.0581]
[1741180785499,1.8026866,145.64,145.41,3.45271798]
[1741180785500,0.14216157,145.55,145.36,51.53712213]
[1741180785700,16.24634631,145.54,145.37,18.933972]
[1741180785901,9.30142871,145.54,145.42,0.14216157]
[1741180786216,1.80470163,145.54,145.4,51.53712213]
[1741180786399,1.80470163,145.54,145.35,15.6058]
[1741180786599,1.8044132,145.53,145.38,51.53712213]
[1741180787014,1.80440402,145.56,145.38,51.53712213]
[1741180787209,8.84526565,145.55,145.37,7.14]
[1741180787395,7.2149,145.53,145.37,7.14]
[1741180787597,1.80466705,145.52,145.38,70.47109413]
[1741180787898,1.80466705,145.52,145.41,0.14216157]
[1741180788306,1.80466705,145.52,145.41,312.14216157]
[1741180788807,1.80466705,145.52,145.4,0.28432314]
[1741180789419,1.80466705,145.52,145.39,0.14216157]
[1741180789620,2.0617,145.51,145.39,0.14216157]
[1741180789917,2.0617,145.51,145.38,18.64964886]
[1741180789918,1.80438472,145.5,145.38,18.64964886]
[1741180790115,6.3583,145.49,145.35,1.586]
[1741180790412,1.80482984,145.48,145.37,18.64964886]
[1741180790600,6.3583,145.49,145.37,70.18677099]
[1741180790912,6.3583,145.49,145.4,18.933972]
[1741180791297,6.3583,145.49,145.4,0.28432314]
[1741180791512,8.4203,145.49,145.41,0.033]
[1741180791911,8.4203,145.49,145.42,312.0]
[1741180793920,15.37958307,145.49,145.41,0.033]
[1741180795921,25.68948307,145.49,145.41,0.033]
[1741180797423,15.37958307,145.49,145.41,18.82481043]
[1741180797827,15.37958307,145.49,145.41,0.033]
[1741180798221,25.68948307,145.49,145.41,0.033]
[1741180799325,0.28432314,145.48,145.31,0.033]
[1741180799647,1.80561187,145.47,145.32,0.28432314]
[1741180799801,1.80561187,145.47,145.34,0.14216157]
[1741180800123,1.80561187,145.47,145.34,18.79181043]
[1741180800308,1.80561187,145.47,145.36,0.14216157]
[1741180800516,7.49672708,145.48,145.36,18.933972]
[1741180800517,1.80485831,145.48,145.36,18.933972]
[1741180800709,8.4203,145.49,145.4,0.14216157]
[1741180801326,1.80450012,145.48,145.41,312.0]
[1741180802235,8.4203,145.49,145.41,312.0]
[1741180802432,6.3583,145.49,145.43,0.14216157]
[1741180802938,2.0614,145.53,145.43,0.14216157]
[1741180803238,1.80418372,145.52,145.43,0.14216157]
[1741180803423,3.86560526,145.53,145.42,0.14216157]
[1741180803627,3.86560526,145.53,145.44,18.79181043]
[1741180803935,2.0614,145.53,145.45,0.14216157]
[1741180804227,3.8647673,145.58,145.48,0.14216157]
[1741180804431,10.1400673,145.6,145.5,0.14216157]
[1741180804609,8.3361,145.6,145.51,0.14216157]
[1741180804810,6.2756,145.6,145.51,0.14216157]
[1741180805005,6.2756,145.6,145.52,70.32893256]
[1741180805215,2.06,145.63,145.54,0.14216157]
[1741180805424,1.80293967,145.62,145.52,312.0]
[1741180805632,10.36388218,145.62,145.47,0.28432314]
[1741180805828,10.36388218,145.62,145.47,18.933972]
[1741180806026,10.36388218,145.62,145.47,70.47109413]
[1741180806233,10.36388218,145.62,145.49,18.933972]
[1741180806430,10.36388218,145.62,145.49,0.28432314]
[1741180806614,10.36388218,145.62,145.47,0.14216157]
[1741180806930,6.3007,145.6,145.46,7.06]
[1741180807134,10.36496063,145.59,145.46,7.06]
[1741180807330,0.14216157,145.57,145.46,7.06]
[1741180807633,1.8044865,145.56,145.41,7.08]
[1741180807809,17.86215609,145.56,145.41,7.08]
[1741180808143,17.86215609,145.56,145.42,18.79181043]
[1741180808427,6.3465,145.55,145.42,18.79181043]
[1741180808607,1.80438963,145.54,145.43,0.14216157]
[1741180809005,2.0612,145.54,145.45,0.28432314]
[1741180809243,6.3465,145.55,145.47,0.28432314]
[1741180809444,1.8040341,145.59,145.48,51.53712213]
[1741180809610,2.0607,145.58,145.49,18.933972]
[1741180809814,6.0439,145.6,145.52,0.14216157]
[1741180810106,2.0606,145.59,145.51,0.28432314]
[1741180810338,12.65638736,145.57,145.51,18.933972]
[1741180811028,2.061,145.56,145.51,18.933972]
[1741180811348,6.92884129,145.56,145.5,7.06]
[1741180811844,4.86784129,145.56,145.51,18.933972]
[1741180812040,4.86784129,145.56,145.52,312.0]
[1741180812341,4.86784129,145.56,145.53,18.933972]
[1741180812510,4.86784129,145.55,145.53,0.28432314]
[1741180812924,4.86784129,145.55,145.52,18.64964886]
[1741180812925,4.86784129,145.55,145.52,0.28432314]
[1741180813117,4.86784129,145.55,145.52,7.15602314]
[1741180813538,4.86784129,145.55,145.54,0.28432314]
[1741180814231,12.6607312,145.64,145.56,0.28432314]
[1741180814434,14.7206312,145.64,145.58,0.14216157]
[1741180815020,12.6607312,145.64,145.59,0.14216157]
[1741180815214,14.7206312,145.64,145.59,0.14216157]
[1741180815421,14.7206312,145.64,145.63,0.14216157]
[1741180815422,12.6607312,145.64,145.63,0.14216157]
[1741180815735,2.0891,145.69,145.64,0.14216157]
[1741180815952,7.237,145.69,145.61,0.28432314]
[1741180816155,1.80200234,145.68,145.6,7.02]
[1741180816838,12.64875659,145.67,145.6,7.02]
[1741180817018,7.2084,145.66,145.6,7.02]
[1741180817222,7.2084,145.66,145.53,7.02]
[1741180817223,1.80249056,145.65,145.53,7.02]
[1741180817441,6.097,145.64,145.53,7.02]
[1741180817639,6.097,145.64,145.54,18.64964886]
[1741180817818,1.80282131,145.63,145.54,18.64964886]
[1741180818020,6.097,145.64,145.55,0.14216157]
[1741180818332,4.86490638,145.63,145.54,18.64964886]
[1741180818637,4.86490638,145.63,145.57,18.933972]
[1741180818819,4.86490638,145.63,145.6,0.14216157]
[1741180819023,2.0595,145.66,145.6,0.14216157]
[1741180819222,7.208,145.67,145.6,18.79181043]
[1741180819425,7.208,145.67,145.58,0.14216157]
[1741180820229,1.80238856,145.66,145.52,1.5056]
[1741180820443,1.80238856,145.66,145.54,18.933972]
[1741180820657,1.80238856,145.66,145.54,18.64964886]
[1741180821135,1.80238856,145.66,145.55,0.14216157]
[1741180821341,17.5076,145.65,145.53,25.62964886]
[1741180821539,1.83300964,145.64,145.54,0.14216157]
[1741180821839,1.83300964,145.64,145.47,8.3069]
[1741180822048,2.53870964,145.64,145.48,6.96]
[1741180822237,10.03543672,145.64,145.49,70.18677099]
[1741180822451,12.62784043,145.63,145.53,0.28432314]
[1741180822751,1.80294726,145.62,145.52,18.64964886]
[1741180823136,1.80294726,145.62,145.51,312.0]
[1741180823441,28.6606617,145.61,145.5,0.28432314]
[1741180823633,1.80338718,145.6,145.49,18.64964886]
[1741180824015,1.80338718,145.6,145.5,0.14216157]
[1741180824217,7.2125,145.58,145.49,18.64964886]
[1741180824551,7.2125,145.58,145.5,0.14216157]
[1741180825047,7.2125,145.58,145.49,0.14216157]
[1741180826041,5.1518,145.58,145.49,0.14216157]
[1741180826234,5.1518,145.58,145.5,0.14216157]
[1741180826428,2.0605,145.59,145.52,0.14216157]
[1741180827053,2.0605,145.59,145.51,0.28432314]
[1741180827631,2.0604,145.6,145.53,0.14216157]
[1741180828357,2.0604,145.6,145.55,0.14216157]